Cogmind - Beta 16 @@@ ROGUE MODE // 2025.12.28 @ 15:58:10 Player: cxt100s Result: Self-destructed Performance ------------- Evolutions (2) 1000 Regions Visited (7) 1400 Robots Destroyed (82) 410 Value Destroyed (1947) 1947 Prototype IDs (24) 480 Alien Tech Used (0) 0 Bonus (300) 300 TOTAL SCORE: 5537 Bonus ------- Aligned with FarCom 300 Cogmind --------- Core Integrity 506/550 Matter 300/300 Energy 275/275 System Corruption 0% Temperature Cool (0) Movement Treading (200) Ox1 Location -8/Materials Parts ------- > --- POWER (1) -------- Deuterium Engine > --- PROPULSION (3) --- Light Treads Light Treads Light Treads > --- UTILITY (5) ------ Improved Heat Sink Improved Heat Sink Huge Storage Unit Trap Scanner Light Armor Plating > --- WEAPON (2) ------- Plasma Cannon Plasma Cannon > --- INVENTORY (25) --- Deuterium Engine Deuterium Engine Light Treads Light Treads Light Treads Light Treads Improved Treads Improved Treads Huge Storage Unit Large Battery (200) Light Armor Plating Beam Cannon Beam Cannon Particle Cannon Heavy Particle Cannon Plasma Cannon Plasma Cannon YOLO Cannon Gauss Rifle Gauss Rifle Gauss Rifle Datajack Plasma Cutter Flail Peak State ------------ > --- POWER ------------ Deuterium Engine > --- PROPULSION ------- Light Treads Light Treads Light Treads > --- UTILITY ---------- Improved Heat Sink Improved Heat Sink Huge Storage Unit Light Armor Plating Medium Armor Plating > --- WEAPON ----------- Plasma Cannon Plasma Cannon > --- INVENTORY -------- Deuterium Engine Deuterium Engine Light Treads Light Treads Light Treads Light Treads Improved Treads Improved Treads Huge Storage Unit Large Battery Trap Scanner Beam Cannon Beam Cannon Particle Cannon Heavy Particle Cannon Plasma Cannon Plasma Cannon YOLO Cannon Gauss Rifle Gauss Rifle Gauss Rifle Datajack Plasma Cutter Flail [Rating: 31] Favorites ----------- Power Improved Ion Engine Engine Improved Ion Engine Propulsion Light Treads Treads Light Treads Leg Aluminum Leg Wheel Armored Wheel Utility Huge Storage Unit Device Seismic Detector Storage Huge Storage Unit Processor Signal Interpreter Protection Light Armor Plating Weapon Medium Laser Energy Gun Medium Laser Energy Cannon Particle Cannon Ballistic Gun Heavy Assault Rifle Ballistic Cannon Light Cannon Special Weapon Mining Laser Build | -11 -10 -10 -9 -9 -9 -8 -8 ------- Run | Yrd Mat Min Mat Min Exi Min Mat Slots Evolved 4 | . . . 2 . . . 2 Power . | . . . . . . . . Propulsion 1 | . . . 1 . . . . Utility 3 | . . . 1 . . . 2 Weapon . | . . . . . . . . Parts Attached 52 | 4 7 1 21 2 1 2 14 Power 6 | . 1 . 2 . 1 1 1 Engine 6 | . 1 . 2 . 1 1 1 Core . | . . . . . . . . Reactor . | . . . . . . . . Propulsion 13 | 2 . 1 6 . . . 4 Treads 11 | 2 . . 5 . . . 4 Leg . | . . . . . . . . Wheel 2 | . . 1 1 . . . . Hover . | . . . . . . . . Flight . | . . . . . . . . Utility 20 | 1 3 . 7 2 . 1 6 Device 11 | 1 1 . 2 1 . 1 5 Storage 3 | . 2 . 1 . . . . Processor 1 | . . . . 1 . . . Hackware . | . . . . . . . . Protection 5 | . . . 4 . . . 1 Artifact . | . . . . . . . . Weapon 13 | 1 3 . 6 . . . 3 Energy Gun 1 | . 1 . . . . . . Energy Cannon 5 | . . . 2 . . . 3 Ballistic Gun 4 | 1 . . 3 . . . . Ballistic Cannon 2 | . 1 . 1 . . . . Launcher . | . . . . . . . . Special Weapon 1 | . 1 . . . . . . Impact Weapon . | . . . . . . . . Slashing Weapon . | . . . . . . . . Piercing Weapon . | . . . . . . . . Special Melee Weapon . | . . . . . . . . Unidentified Prototypes 1 | . . . 1 . . . . Parts Lost 13 | . 3 . 5 . . 1 4 Power 2 | . 1 . . . . 1 . Propulsion 5 | . . . 2 . . . 3 Utility 3 | . 1 . 1 . . . 1 Weapon 3 | . 1 . 2 . . . . Highest Loss Streak 3 | . 3 . 1 . . 1 3 To Critical Strikes . | . . . . . . . . Average Backups 21 | 4 14 23 24 25 24 23 23 Power 2 | 1 2 3 2 2 1 1 2 Propulsion 4 | 2 2 3 4 5 5 5 5 Utility 5 | . 3 8 7 7 6 5 2 Weapon 8 | 1 5 8 9 9 8 9 11 Tool/Special . | . . . . . . . . Unused Backups 51 | 4 3 . 16 . 1 . 27 Power 9 | . . . 4 . . . 5 Propulsion 12 | 4 1 . 2 . . . 5 Utility 7 | . 2 . 3 . . . 2 Weapon 21 | . . . 7 . 1 . 13 Tool/Special 2 | . . . . . . . 2 Average Slot Usage (%) 99 | . 98 100 99 100 100 98 97 Engine 11 | . 13 14 11 11 11 9 9 Treads 30 | . 28 20 32 33 33 33 27 Device 13 | . 12 14 8 11 11 7 23 Storage 11 | . 14 14 11 11 11 11 9 Protection 8 | . . . 13 10 2 14 10 Energy Gun 4 | . 13 14 4 . . . . Energy Cannon 7 | . . . 6 11 11 11 16 Ballistic Gun 6 | . 4 . 8 11 11 11 1 Ballistic Cannon 3 | . 9 14 2 . . . . Peak Build Rating 31 | 7 9 9 18 16 18 20 31 Average Rating 15 | 6 7 9 14 16 16 18 28 On Entrance 12 | 6 7 9 9 16 16 18 18 Avg Prop Armor Cover (%) 13 | . . 12 13 . . . . Naked Turns . | . . . . . . . . Heaviest Build 115 | 15 90 89 104 98 102 107 115 Greatest Support 60 | 40 40 40 60 60 60 60 60 Greatest Overweight (x) 8 | . 2 8 7 1 1 1 1 Average Overweight (x) 1 | . 1 7 1 1 1 1 1 Largest Inventory Capacity 25 | 8 25 25 25 25 25 25 25 Average Capacity 24 | 8 24 25 25 25 25 25 25 Most Carried 25 | 6 23 23 25 25 25 25 25 Average Carried 21 | 4 14 23 24 25 24 23 24 Final Capacity 25 | 8 25 25 25 25 25 25 25 Final Carried 25 | 6 23 23 25 25 25 23 25 Class Distribution -------------------- 67% | Scavenger-Mutant 32% | Mutant Dominant Class ---------------- Mutant | -10/Materials Mutant | -10/Mines Scavenger-Mutant | -9/Materials Scavenger-Mutant | -9/Mines Scavenger-Mutant | -9/Exiles Scavenger-Mutant | -8/Mines Scavenger-Mutant | -8/Materials Resources | -11 -10 -10 -9 -9 -9 -8 -8 ----------- Run | Yrd Mat Min Mat Min Exi Min Mat Matter Collected 1747 | 294 186 10 728 107 . 128 294 Remotely . | . . . . . . . . Salvage Created 2772 | 241 531 . 1108 42 . 225 625 Parts 166 | 27 29 . 73 4 . 7 26 Haulers Intercepted 2 | . 1 . . . . . 1 Recyclers Shooed 2 | . . . 1 . . . 1 Parts Field Recycled . | . . . . . . . . Retrieved Matter . | . . . . . . . . Parts Self-Destructed . | . . . . . . . . Prevented . | . . . . . . . . Parts Restored . | . . . . . . . . Kills | -11 -10 -10 -9 -9 -9 -8 -8 ------- Run | Yrd Mat Min Mat Min Exi Min Mat Combat Hostiles Destroyed 55 | . 13 . 27 . . 3 12 Guns 22 | . 9 . 11 . . 2 . Cannons 31 | . 4 . 16 . . . 11 Classes Destroyed 10 | 2 3 . 4 . . 1 . Builder 1 | . . . 1 . . . . Tunneler 14 | 9 . . 2 3 . . . Hauler 2 | . 1 . . . . . 1 Recycler 5 | 1 2 . 1 . . 1 . Operator 1 | . . . 1 . . . . Watcher 4 | . . . 1 . . . 3 Swarmer 19 | . 6 . 10 . . . 3 Grunt 24 | . 7 . 9 . . 2 6 Brawler 1 | . . . . . . 1 . Sentry 11 | . . . 8 . . . 3 Best Kill Streak 8 | 4 8 . 4 2 . 4 3 Combat Bots Only 8 | . 8 . 4 . . 3 3 Max Kills in Single Turn 2 | 2 1 . 2 1 . 1 1 Gunslinging . | . . . . . . . . Exploded . | . . . . . . . . Melee . | . . . . . . . . Uniques/NPCs Destroyed . | . . . . . . . . Combat | -11 -10 -10 -9 -9 -9 -8 -8 -------- Run | Yrd Mat Min Mat Min Exi Min Mat Hostile Shots Fired 290 | . 90 . 105 . . 22 73 Missed 78 | . 24 . 31 . . 4 19 Hits 212 | . 66 . 74 . . 18 54 Melee 1 | . . . . . . 1 . Projectile 211 | . 66 . 74 . . 17 54 AOE 1 | . . . 1 . . . . Critical Strikes 8 | . . . 5 . . . 3 Damage Taken 2467 | . 589 . 915 . . 290 673 Core 294 | . 107 . 80 . . 63 44 Absorbed by Shields . | . . . . . . . . Core Remaining (%) 73 | 100 . 57 . . . 64 . Volleys Fired 193 | 18 43 . 80 2 . 9 41 Largest 2 | 2 2 . 2 2 . 2 2 Hottest 160 | 70 100 . 100 91 . 91 160 Shots Fired 377 | 36 85 . 151 5 . 18 82 Gun 208 | 36 75 . 83 3 . 9 2 Cannon 160 | . 9 . 60 2 . 9 80 Launcher . | . . . . . . . . Special 9 | . 1 . 8 . . . . Kinetic 149 | 18 42 . 75 3 . 9 2 Thermal 228 | 18 43 . 76 2 . 9 80 Explosive . | . . . . . . . . Electromagnetic . | . . . . . . . . Robot Hit Streak 26 | 26 10 . 21 10 . 9 11 Robot Miss Streak 3 | 2 3 . 2 1 . 2 3 Penetration Max . | . . . . . . . . Secondary Targets 2 | . 2 . . . . . . Max Gunslinging Chain 1 | . 1 . . . . . . Shots Hit Robots 253 | 29 51 . 101 4 . 13 55 Core Hits 108 | 10 23 . 48 2 . 5 20 Critical Kills 2 | . . . . . . 1 1 Critical Parts Destroyed 1 | . . . 1 . . . . Critical Strikes 6 | 2 . . 2 . . 1 1 Burn 3 | 2 . . 1 . . . . Meltdown 2 | . . . . . . 1 1 Destroy 1 | . . . 1 . . . . Melee Attacks . | . . . . . . . . Impact . | . . . . . . . . Slashing . | . . . . . . . . Piercing . | . . . . . . . . Sneak Attacks . | . . . . . . . . Combat Hostiles . | . . . . . . . . Follow-up Attacks . | . . . . . . . . Damage Inflicted 4396 | 385 718 . 1616 70 . 224 1383 Guns 1992 | 385 624 . 823 28 . 101 31 Cannons 2367 | . 83 . 769 40 . 123 1352 Explosions . | . . . . . . . . Melee . | . . . . . . . . Ramming 13 | . 11 . . 2 . . . Kinetic 1679 | 223 372 . 924 28 . 101 31 Thermal 2704 | 162 335 . 692 40 . 123 1352 Explosive . | . . . . . . . . Electromagnetic . | . . . . . . . . Impact . | . . . . . . . . Slashing . | . . . . . . . . Piercing . | . . . . . . . . Highest Corruption 1 | . . . 1 1 1 1 . Average Corruption 1 | . . . 1 1 1 1 . Corruption Purged . | . . . . . . . . Corruption Blocked . | . . . . . . . . Effects 24 | . . . 16 3 4 1 . Message Errors 6 | . . . 5 . . 1 . Matter Fused 8 | . . . 5 1 2 . . Heat Flow Errors 1 | . . . . . 1 . . Energy Discharges 4 | . . . 4 . . . . Data Loss (minor) 4 | . . . 2 1 1 . . Misfires 1 | . . . . 1 . . . Overload Shots . | . . . . . . . . Overflow Damage 45 | . . . 10 . . 4 31 Projectiles 45 | . . . 10 . . 4 31 Explosions . | . . . . . . . . Melee . | . . . . . . . . Knockbacks 8 | . 1 . 7 . . . . Impact 1 | . 1 . . . . . . Kinetic 6 | . . . 6 . . . . Secondary 1 | . . . 1 . . . . Self-Inflicted Damage . | . . . . . . . . Shots . | . . . . . . . . Rammed 1 | . 1 . . . . . . Targets Rammed 2 | . 1 . . 1 . . . Kicked . | . . . . . . . . Crushed 1 | . . . . 1 . . . Highest Temperature 203 | 99 111 . 181 33 203 30 90 Average Temperature 44 | 37 45 . 49 20 111 10 30 Received Heat Transfer 765 | . 63 . 288 . . 153 261 Siege Activations . | . . . . . . . . Martial Activations . | . . . . . . . . Shielding Activations . | . . . . . . . . Robots Disrupted . | . . . . . . . . Combat Hostiles . | . . . . . . . . Robots Corrupted . | . . . . . . . . Combat Hostiles . | . . . . . . . . Parts Fried . | . . . . . . . . Impact Corruptions . | . . . . . . . . Robots Melted 3 | 1 . . . . . 1 1 Combat Hostiles 2 | . . . . . . 1 1 Parts Melted 7 | 1 1 . . . . 1 4 Heat Transferred 6165 | 629 999 . 1604 74 . 222 2637 Parts Sabotaged . | . . . . . . . . Parts Stolen . | . . . . . . . . Parts Stripped . | . . . . . . . . Power Chain Reactions . | . . . . . . . . Alert | -11 -10 -10 -9 -9 -9 -8 -8 ------- Run | Yrd Mat Min Mat Min Exi Min Mat Maximum Alert Level 1 | . . . 1 . . . . Low Security (%) 95 | 100 100 100 89 100 . 100 100 Level 1 4 | . . . 10 . . . . Level 2 . | . . . . . . . . Level 3 . | . . . . . . . . Level 4 . | . . . . . . . . Level 5 . | . . . . . . . . High Security . | . . . . . . . . Max Security . | . . . . . . . . Peak Influence 215 | 20 136 . 215 81 . 65 126 Initial 81 | . . . . 81 . . 13 Average 54 | 2 18 . 88 15 . 41 56 Influence Increases 1823 | 50 342 . 886 15 . 75 455 Destroy 0b10 Robot/C 1100 | . 260 . 540 . . 60 240 Destroy 0b10 Robot/NC 135 | 50 15 . 30 15 . 5 20 Destroy Leader 292 | . 62 . 152 . . 10 68 Successful Hack 52 | . 4 . 33 . . . 15 Disable Machine 30 | . . . 15 . . . 15 Destroy Structure 34 | . 1 . 11 . . . 22 Lose Combat Pursuer 180 | . . . 105 . . . 75 Influence Decreases 1758 | 50 342 . 677 224 . 40 425 Entered New Map 150 | . . . . 128 . . 22 Time Decay 1283 | 50 240 . 494 96 . 40 363 Lost Part 110 | . 30 . 40 . . . 40 Purge Threat 215 | . 72 . 143 . . . . Squads Dispatched 9 | . 5 . 2 . . . 2 Investigation 4 | . 2 . 1 . . . 1 Extermination . | . . . . . . . . Reinforcement 5 | . 3 . 1 . . . 1 Assault . | . . . . . . . . Garrison . | . . . . . . . . Intercept . | . . . . . . . . Searches Triggered . | . . . . . . . . Construction Impeded . | . . . . . . . . Haulers Reinforced . | . . . . . . . . Active Scanning Responses . | . . . . . . . . Cargo Convoy Interrupts . | . . . . . . . . Stealth | -11 -10 -10 -9 -9 -9 -8 -8 --------- Run | Yrd Mat Min Mat Min Exi Min Mat Distress Signals 11 | . 3 . 4 . . . 4 Communications Jammed . | . . . . . . . . Distress Signals . | . . . . . . . . Times Spotted 95 | . 24 . 39 . . 3 29 Peak Tracking Total 8 | . 5 . 4 . . 3 8 Tactical Retreats 10 | . 1 . 5 . . . 4 Traps | -11 -10 -10 -9 -9 -9 -8 -8 ------- Run | Yrd Mat Min Mat Min Exi Min Mat Traps Triggered 2 | . 1 . 1 . . . . Indirectly . | . . . . . . . . Trap Hack Attempts . | . . . . . . . . Triggered . | . . . . . . . . Disarmed . | . . . . . . . . Reprogrammed . | . . . . . . . . Reused . | . . . . . . . . Traps Extracted . | . . . . . . . . Installed . | . . . . . . . . Triggered . | . . . . . . . . Machines | -11 -10 -10 -9 -9 -9 -8 -8 ---------- Run | Yrd Mat Min Mat Min Exi Min Mat Machines Disabled 2 | . . . 1 . . . 1 Max in Single Turn 1 | . . . 1 . . . 1 Machines Repaired . | . . . . . . . . Machines Dismantled . | . . . . . . . . Machines Sabotaged . | . . . . . . . . Overloaded Fab Kills . | . . . . . . . . Hacking | -11 -10 -10 -9 -9 -9 -8 -8 --------- Run | Yrd Mat Min Mat Min Exi Min Mat Machines Accessed 18 | . 4 . 9 . 2 . 3 Terminals 14 | . 4 . 8 . . . 2 Fabricators . | . . . . . . . . Repair Stations . | . . . . . . . . Recycling Units . | . . . . . . . . Scanalyzers 1 | . . . 1 . . . . Garrison Access 1 | . . . . . . . 1 Total Hacks 47 | . 13 . 23 . 2 . 9 Successful 18 | . 5 . 7 . 2 . 4 Failed 28 | . 8 . 15 . . . 5 Catastrophic 4 | . . . 4 . . . . Database Lockouts 1 | . . . 1 . . . . Manual 30 | . 8 . 18 . 1 . 3 Terminals 40 | . 13 . 21 . . . 6 Fabricators . | . . . . . . . . Repair Stations . | . . . . . . . . Recycling Units . | . . . . . . . . Scanalyzers 2 | . . . 2 . . . . Garrison Access 3 | . . . . . . . 3 Terminal Hacks 11 | . 4 . 3 . 2 . 2 Record 1 | . . . . . 1 . . Terminal Index 1 | . . . . . . . 1 Alert Level 1 | . 1 . . . . . . Unreport Threat 2 | . 1 . 1 . . . . Locate Traps 2 | . 1 . 1 . . . . Hauler Manifests 3 | . 1 . 1 . . . 1 Proto ID Catalog 1 | . . . . . 1 . . Fabricator Hacks . | . . . . . . . . Repair Station Hacks . | . . . . . . . . Recycling Unit Hacks . | . . . . . . . . Scanalyzer 1 | . . . 1 . . . . Retrieve Study 1 | . . . 1 . . . . Garrison Access Hacks . | . . . . . . . . Unauthorized Hacks 6 | . 1 . 3 . . . 2 Terminals 6 | . 1 . 3 . . . 2 Botnet 6 | . 1 . 3 . . . 2 Fabricators . | . . . . . . . . Repair Stations . | . . . . . . . . Recycling Units . | . . . . . . . . Scanalyzers . | . . . . . . . . Garrison Access . | . . . . . . . . Data Cores Recovered . | . . . . . . . . Used . | . . . . . . . . Hacking Detections 16 | . 4 . 9 . . . 3 Full Trace Events 2 | . 1 . . . . . 1 Feedback Events . | . . . . . . . . Feedback Blocked . | . . . . . . . . Robot Schematics Acquired . | . . . . . . . . Robots Built . | . . . . . . . . Authchips . | . . . . . . . . Time . | . . . . . . . . Total Robot Build Rating . | . . . . . . . . Part Schematics Acquired . | . . . . . . . . Parts Built . | . . . . . . . . Authchips . | . . . . . . . . Time . | . . . . . . . . Total Part Build Rating . | . . . . . . . . Part Studies Acquired 1 | . . . 1 . . . . Parts Repaired . | . . . . . . . . Time . | . . . . . . . . Parts Recycled . | . . . . . . . . Recycled Matter . | . . . . . . . . Retrieved Matter . | . . . . . . . . Retrieved Components . | . . . . . . . . Parts Scanalyzed . | . . . . . . . . Part Schematics Acquired . | . . . . . . . . Parts Damaged . | . . . . . . . . Bothacking | -11 -10 -10 -9 -9 -9 -8 -8 ------------ Run | Yrd Mat Min Mat Min Exi Min Mat Used RIF Installer . | . . . . . . . . Robots Hacked . | . . . . . . . . Non-combat . | . . . . . . . . Combat . | . . . . . . . . Robot Hacks Applied . | . . . . . . . . Relay Couplers Released . | . . . . . . . . Fabnet Peak Effective % . | . . . . . . . . Robots Rewired . | . . . . . . . . Allies Hacked . | . . . . . . . . Hacks Repelled . | . . . . . . . . Allies | -11 -10 -10 -9 -9 -9 -8 -8 -------- Run | Yrd Mat Min Mat Min Exi Min Mat Total Allies . | . . . . . . . . Largest Group . | . . . . . . . . Highest-Rated Group . | . . . . . . . . Highest-Rated Ally . | . . . . . . . . Total Orders . | . . . . . . . . Ally Attacks . | . . . . . . . . Total Damage . | . . . . . . . . Kills . | . . . . . . . . Allies Corrupted . | . . . . . . . . Allies Melted . | . . . . . . . . Intel | -11 -10 -10 -9 -9 -9 -8 -8 ------- Run | Yrd Mat Min Mat Min Exi Min Mat Active Infowar (turns) 6261 | 202 1479 61 2199 491 825 6 998 Traps 998 | . . . . . . . 998 Seismic 5263 | 202 1479 61 2199 491 825 6 . Robot Analysis Total . | . . . . . . . . Derelict Logs Recovered . | . . . . . . . . Drone Launches . | . . . . . . . . Drone Recoveries . | . . . . . . . . Exploration | -11 -10 -10 -9 -9 -9 -8 -8 ------------- Run | Yrd Mat Min Mat Min Exi Min Mat Turns Passed 7585 | 304 1603 61 2711 491 825 92 1498 Spaces Moved 2511 | 74 449 28 793 241 410 27 489 Core . | . . . . . . . . Treads 2433 | 74 449 4 739 241 410 27 489 Legs . | . . . . . . . . Wheels 78 | . . 24 54 . . . . Hover . | . . . . . . . . Flight . | . . . . . . . . Fastest Speed 160 | 160 160 200 195 200 200 200 200 Average Speed 217 | 160 298 217 203 200 200 200 200 Slowest Speed 320 | 160 320 320 240 200 200 200 200 Overloaded Moves . | . . . . . . . . Propulsion Burnouts . | . . . . . . . . Robots Hopped . | . . . . . . . . Potential Cave-ins . | . . . . . . . . Cave-ins Triggered . | . . . . . . . . Exploration Rate (%) 42 | 4 85 10 84 52 63 8 30 Regions Visited 7 Branch Regions 4 Pre-discovered Areas 1 | . . . . . 1 . . Known Exits Taken 2 | . . . . 1 1 . . Unknown Exits Taken 5 | 1 1 1 1 . . 1 . Scrap Searched 2 | . . 1 . 1 . . . Spaces Dug 8 | . 1 . 7 . . . . Terrain Destroyed 29 | . 1 . 7 . . . 21 Melee . | . . . . . . . . Projectile 29 | . 1 . 7 . . . 21 AOE . | . . . . . . . . Terrain Rammed . | . . . . . . . . Walls Destroyed . | . . . . . . . . Machines Disabled . | . . . . . . . . Actions | -11 -10 -10 -9 -9 -9 -8 -8 --------- Run | Yrd Mat Min Mat Min Exi Min Mat Total 4240 | 223 622 28 1722 246 417 49 933 Wait 1297 | 124 99 . 723 . . 1 350 Move 2504 | 73 448 27 792 240 409 26 489 Hop . | . . . . . . . . Pick Up 75 | 2 21 . 35 . 2 2 13 Fast Attach 7 | 1 . . . . . . 6 Attach 20 | . 3 . 8 . 2 2 5 Detach 2 | . . . . . . . 2 Swap 80 | 3 4 1 53 2 1 4 12 Drop 60 | 2 3 . 31 1 3 5 15 Fire 193 | 18 43 . 80 2 . 9 41 Melee . | . . . . . . . . Ram . | . . . . . . . . Kick . | . . . . . . . . Crush 2 | . 1 . . 1 . . . Escape Stasis . | . . . . . . . . Rewire . | . . . . . . . . Trap . | . . . . . . . . Miscellaneous . | . . . . . . . . Route ------- -11/Scrapyard -10/Materials (discovered 3 exits: *Mat x2 / [*Min]) -10/Mines (discovered 2 exits: *Mat / [*Sub]) -9/Materials (discovered 4 exits: *Mat x3 / [*Min]) -9/Mines (discovered 3 exits: *Mat x2 / *Exi) -9/Exiles (discovered 2 exits: *Min x2) -8/Mines -8/Materials (discovered 1 exit: [*Fac]) History --------- Turn | Location | Event 19 | -11/Scrapyard | Discovered new exit (range 3) 305 | -11/Scrapyard | Entered Materials 306 | -10/Materials | Build established: Mutant 851 | -10/Materials | Lost 3 parts (1p1u1w) 874 | -10/Materials | Destroyed 8 combat bots 1105 | -10/Materials | Derelicts attacked the area 1293 | -10/Materials | Discovered new exit (range 13) 1546 | -10/Materials | Discovered new exit (range 16) 1896 | -10/Materials | Discovered new exit (range 5) 1908 | -10/Materials | Entered Mines 1941 | -10/Mines | Discovered new exit (range 12) 1949 | -10/Mines | Discovered new exit (range 7) 1969 | -10/Mines | Entered Materials 1969 | -9/Materials | Evolved 2 slots: Propulsion x1, Utility x1 2363 | -9/Materials | Central database locked down 2521 | -9/Materials | Discovered new exit (range 5) 2814 | -9/Materials | Build established: Scavenger-Mutant 3654 | -9/Materials | Discovered new exit (range 16) 4105 | -9/Materials | Discovered new exit (range 14) 4656 | -9/Materials | Discovered new exit (range 12) 4680 | -9/Materials | Entered Mines 4687 | -9/Mines | Met a Derelict bent on vengeance 4889 | -9/Mines | Discovered new exit (range 10) 4967 | -9/Mines | Discovered new exit (range 5) 5114 | -9/Mines | Assembled infested the area 5161 | -9/Mines | Discovered new exit (range 5) 5170 | -9/Mines | Identified exit to Exiles 5171 | -9/Mines | Entered Exiles 5197 | -9/Exiles | Discovered new exit (range 15) 5225 | -9/Exiles | Met 8R-AWN 5253 | -9/Exiles | Met EX-HEX 5315 | -9/Exiles | Met EX-BIN 5339 | -9/Exiles | Aligned with FarCom system 5341 | -9/Exiles | Given EX-Vault access code 5389 | -9/Exiles | Opened EX-Vault 5404 | -9/Exiles | Found YOLO Cannon 5446 | -9/Exiles | Warned to stay clear of 0b10 Research branches 5506 | -9/Exiles | Met EX-DEC 5540 | -9/Exiles | Learned location of Zion (-6) 5610 | -9/Exiles | Discovered new exit (range 11) 5626 | -9/Exiles | Identified exit to Mines 5996 | -9/Exiles | Left Exiles lab with YOLO Cannon 5996 | -9/Exiles | Entered Mines 6080 | -8/Mines | Discovered new exit (range 5) 6088 | -8/Mines | Entered Materials 6088 | -8/Materials | Evolved 2 slots: Utility x2 6494 | -8/Materials | Discovered new exit (range 8) 6695 | -8/Materials | Lost 3 parts (2n1u) 7586 | -8/Materials | Self-destructed Last Messages --------------- 07136_ U-05 Engineer builds a Wall. 07190_ K-01 Serf collects debris. 07356_ K-01 Serf cleans the Garrison Access. 07373_ W-25 Informer sends out distress signal. 07405_ Critical hit (Burn: +37). 07413_ Electrolysis Chamber disabled. 07415_ G-47 Trooper destroyed. 07432_ Dropped Imp. Heat Sink. 07433_ Acquired 20 matter. 07436_ Acquired 10 matter. 07441_ K-01 Serf collects debris. 07458_ U-05 Engineer builds a Wall. 07459_ K-01 Serf collects debris. 07464_ U-05 Engineer builds a Wall. 07466_ K-01 Serf collects debris. 07468_ U-05 Engineer builds a Wall. 07477_ R-06 Scavenger collects Aluminum Leg. 07586_ Connecting with Garrison Access... 07586_ ALERT: Suspicious activity at Garrison Access M001. Dispatching Investigation squad. Map ----- +----------------------------------------------------+ | ?????????????????????????????????????????????????? | | ?????????????????????????????????????????????????? | | ?????????????????????????????????????????????????? | | ?????????????????????????????????????????????????? | | ????????????????????????????????????????????? ? | | ??????????????????????????????????????????? ? | | ????????????????????????????????????????? ? | | ?????????????????????????????????????????? ? | | ?????????????????????????????????????????? ! ? | | ?????????????????????? ??????????????????" ? | | ?????????????????????# "???????????????""" ? | | ?????????????????????# ""???????????????"" ? | | ?????????????????????# """?????????????? ? | | ?????????????????????# ??????????????? #? | | ?????????????????????# ? ???? ??????? #? | | ?????????????????????# ????????? #? | | ?????????????????????# ??????????? #? | | ?????????????????????# #???????????# #? | | ?????????????????????# ^ ]#???????????## #? | | ?????????????????????# #????????????#%## | | ?????????????????????# """ #???????????## ## | | ?????????????????????# """ #???????????## ## | | ?????????????????????# """^ #???????????## ## | | ?????????????????????# ^ #???????????## ## | | ?????????????????????#^ ^ #????????????# ## | | ?????????C???????????# "@" = ############## ## | | ????????????########## "G" % | | ???????? """ | | ???????? | | ???????? !!! | | ????????? ############r !!! | | ??????????????????????# ############!!! "" | | ??????????????????????# #??????##### % T" | | ??????????????????????# #??????# [ % "" | | ??????????????????????# #??????# | | ??????????????????????# t#??????#!! % | | ??????????????###?#???# #??????#!! #####+# | | ??????????????# ???# #??????#!! %## % | | ?????????????? ??? #??????#!! ## ! | | ??????????????? T ?? #??????##### ##!! | | ??????????????? ? #??????????# ##!! | | ??????????????? ?###+######?????????# ##! | | ???????????????# ## #?????????# ## " " | | ???????????????# ## """ #?????????### ## """ | | ???????????????# ## """ !#??#######??# ## """ | | ???????????????# ## """ #?? ##?# ## | | ???????????????# ## #?## ###+####### | | ???????????????# ## """ ### ## #????? | | ???????????????# ## "R ## ## " #????? | | ???????????????# ## " " "# ## T #????? | +----------------------------------------------------+ Best States ------------- Heat Dissipation 59 Energy Generation 14 Energy Capacity 275 Matter Stores 300 Matter Capacity 300 Sight Range 16 Terrain Scan Density 10 Armor Coverage 375 Evasion (%) 40 Recoil Reduction 3 Item Schematics ----------------- None Robot Schematics ------------------ None Fabricated ------------ Nothing Repaired ---------- Nothing Studied --------- Lgt. Treads | -9/Materials | Hacked Alien Tech Used ----------------- None Achievements -------------- None Challenges ------------ None Game ------ Seed ServoSalvagingGravjet Manual? 0 Play Time 01:07:06 Cumulative 311.8 hours Start 2025.12.28 @ 14:26:07 End 2025.12.28 @ 15:58:10 Sessions 1 Manual Loads 0 Difficulty Rogue Special Mode None Game No. 108 Rogue 108 Adventurer 0 Explorer 0 Win Type - Total 14 Types 10/0/1/0/1/0/0/0/0/2 Lore% 58 Gallery% 52 Achievement% 45 Wizard Run 0 Options --------- Layout 0 ASCII 0 Keyboard 0 Movement Numpad Keybinds 0 Fullscreen 1 Font 18/SmallcapsGlow Map View 76x50 Zoom Use 0% Tactical HUD 1 Map Filters NONE Filters NONE Steam 1 RUN: 83ef245f-6c90-4fad-8dba-59d5ee3e806e